[Event "European Online Club-ch-A 2021"]
[Site "Online"]
[Date "2021.03.27"]
[Round "7.20"]
[White "Smolik, Jachym"]
[Black "Tinmaz, Kerem"]
[Result "1-0"]
[ECO "D12"]
[WhiteElo "2073"]
[BlackElo "1614"]
[Annotator "NA"]
[PlyCount "123"]
[EventDate "2021.03.27"]
[EventType "team-tourn"]
[EventCountry "NET"]
[SourceTitle "playchess.com"]
[Source "ChessBase"]
[SourceQuality "1"]
[TimeControl "900+5"]

1. d4 {[%emt 0:00:00]} d5 {[%emt 0:00:03]} 2. c4 {[%emt 0:00:05]} c6 {[%emt 0:00:02]} 3. Nf3 {[%emt 0:00:03]} Nf6 {[%emt 0:00:10]} 4. e3 {[%emt 0:00:01]} Bf5 {[%emt 0:00:17]} 5. Qb3 {[%emt 0:00:26]} Qc7 {[%emt 0:00:58]} 6. Bd2 {[%emt 0:00:25]} e6 {[%emt 0:00:14]} 7. Nc3 {[%emt 0:00:34]} Nbd7 {[%emt 0:00:40]} 8. Rc1 {[%emt 0:00:06]} Rc8 {[%emt 0:01:11]} 9. Be2 {[%emt 0:00:41]} Be7 {[%emt 0:00:45]} 10. O-O {[%emt 0:00:53]} O-O {[%emt 0:00:15]} 11. h3 {[%emt 0:00:17]} dxc4 {[%emt 0:00:32]} 12. Bxc4 {[%emt 0:00:05]} Nb6 {[%emt 0:00:21]} 13. Be2 {[%emt 0:00:20]} Ne4 {[%emt 0:00:26]} 14. Nxe4 {[%emt 0:00:35]} Bxe4 {[%emt 0:00:02]} 15. a3 {[%emt 0:01:32]} Rfd8 {[%emt 0:01:00]} 16. Ba5 {[%emt 0:00:12]} Rd5 {[%emt 0:01:39]} 17. Bxb6 {[%emt 0:00:28]} Qxb6 {[%emt 0:00:20]} 18. Qxb6 {[%emt 0:00:04]} axb6 {[%emt 0:00:01]} 19. Nd2 {[%emt 0:00:01]} Bg6 {[%emt 0:00:16]} 20. Nc4 {[%emt 0:00:07]} Bd8 {[%emt 0:00:37]} 21. Bf3 {[%emt 0:01:15]} Rd7 {[%emt 0:00:21]} 22. Rc3 {[%emt 0:00:17]} f6 {[%emt 0:00:55]} 23. Bg4 {[%emt 0:00:26]} Kf7 {[%emt 0:00:18]} 24. Rfc1 {[%emt 0:00:30]} Ra8 {[%emt 0:01:23]} 25. Nd2 {[%emt 0:00:56]} Ra5 {[%emt 0:00:26]} 26. b4 {[%emt 0:01:31]} Ra8 {[%emt 0:00:40]} 27. Ra1 {[%emt 0:01:31]} Be7 {[%emt 0:00:30]} 28. Rcc1 {[%emt 0:00:11]} c5 {[%emt 0:00:50]} 29. Nc4 {[%emt 0:00:33]} Bd8 {[%emt 0:00:31]} 30. bxc5 {[%emt 0:00:11]} bxc5 {[%emt 0:00:07]} 31. dxc5 {[%emt 0:00:03]} Bc7 {[%emt 0:00:17]} 32. Bf3 {[%emt 0:00:15]} Rb8 {[%emt 0:00:23]} 33. Rd1 {[%emt 0:00:42]} Rxd1+ {[%emt 0:00:09]} 34. Rxd1 {[%emt 0:00:04]} Ke7 {[%emt 0:00:11]} 35. Rd2 {[%emt 0:00:30]} e5 {[%emt 0:00:12]} 36. Bd5 {[%emt 0:00:31]} b6 {[%emt 0:00:40]} 37. cxb6 {[%emt 0:01:11]} Bxb6 {[%emt 0:00:01]} 38. Nxb6 {[%emt 0:00:20]} Rxb6 {[%emt 0:00:02]} 39. f3 {[%emt 0:00:11]} Ra6 {[%emt 0:00:05]} 40. Ra2 {[%emt 0:00:05]} Ra5 {[%emt 0:00:03]} 41. e4 {[%emt 0:00:03]} Bf7 {[%emt 0:00:16]} 42. Bxf7 {[%emt 0:00:06]} Kxf7 {[%emt 0:00:01]} 43. Kf2 {[%emt 0:00:06]} Ke7 {[%emt 0:00:03]} 44. Ke3 {[%emt 0:00:02]} Kd6 {[%emt 0:00:02]} 45. Kd3 {[%emt 0:00:03]} Kc5 {[%emt 0:00:03]} 46. Kc3 {[%emt 0:00:02]} h5 {[%emt 0:00:18]} 47. h4 {[%emt 0:00:06]} g5 {[%emt 0:00:04]} 48. g3 {[%emt 0:00:08]} gxh4 {[%emt 0:00:08]} 49. gxh4 {[%emt 0:00:03]} Ra4 {[%emt 0:00:06]} 50. Ra1 {[%emt 0:00:09]} Ra5 {[%emt 0:00:09]} 51. a4 {[%emt 0:00:03]} Kc6 {[%emt 0:00:05]} 52. Kb4 {[%emt 0:00:06]} Rc5 {[%emt 0:00:04]} 53. a5 {[%emt 0:00:03]} Rc2 {[%emt 0:00:06]} 54. a6 {[%emt 0:00:04]} Rb2+ {[%emt 0:00:01]} 55. Kc3 {[%emt 0:00:05]} Rb8 {[%emt 0:00:05]} 56. a7 {[%emt 0:00:01]} Ra8 {[%emt 0:00:03]} 57. Kc4 {[%emt 0:00:01]} Kd6 {[%emt 0:00:03]} 58. Kb5 {[%emt 0:00:03]} Kc7 {[%emt 0:00:02]} 59. Kc5 {[%emt 0:00:02]} Kd7 {[%emt 0:00:10]} 60. Kb6 {[%emt 0:00:05]} Kc8 {[%emt 0:00:04]} 61. Kc6 {[%emt 0:00:02]} Kd8 {[%emt 0:00:05]} 62. Kb7 {[%emt 0:00:03]} 1-0

[Event "European Online Club-ch-A 2021"]
[Site "Online"]
[Date "2021.03.27"]
[Round "8.1"]
[White "Horvath, Laszlo"]
[Black "Finek, Vaclav"]
[Result "1/2-1/2"]
[ECO "C42"]
[WhiteElo "2183"]
[BlackElo "2361"]
[Annotator "NA"]
[PlyCount "82"]
[EventDate "2021.03.27"]
[EventType "team-tourn"]
[EventCountry "NET"]
[SourceTitle "playchess.com"]
[Source "ChessBase"]
[SourceQuality "1"]
[TimeControl "900+5"]

1. e4 {[%emt 0:00:00]} e5 {[%emt 0:00:11]} 2. Nf3 {[%emt 0:00:03]} Nf6 {[%emt 0:00:02]} 3. Nxe5 {[%emt 0:00:02]} d6 {[%emt 0:00:01]} 4. Nf3 {[%emt 0:00:02]} Nxe4 {[%emt 0:00:01]} 5. Nc3 {[%emt 0:00:02]} Nxc3 {[%emt 0:00:03]} 6. dxc3 {[%emt 0:00:01]} Be7 {[%emt 0:00:01]} 7. Bd3 {[%emt 0:00:03]} Nc6 {[%emt 0:00:14]} 8. O-O {[%emt 0:00:02]} Be6 {[%emt 0:00:02]} 9. Nd4 {[%emt 0:00:14]} Nxd4 {[%emt 0:00:09]} 10. cxd4 {[%emt 0:00:02]} d5 {[%emt 0:00:06]} 11. Bf4 {[%emt 0:00:07]} Bf6 {[%emt 0:01:00]} 12. c3 {[%emt 0:00:05]} c6 {[%emt 0:00:26]} 13. Qc2 {[%emt 0:00:12]} h6 {[%emt 0:00:22]} 14. Rae1 {[%emt 0:00:30]} O-O {[%emt 0:00:09]} 15. Bf5 {[%emt 0:00:10]} Qd7 {[%emt 0:00:13]} 16. Bxe6 {[%emt 0:00:05]} fxe6 {[%emt 0:00:02]} 17. Be5 {[%emt 0:00:17]} Bxe5 {[%emt 0:01:05]} 18. Rxe5 {[%emt 0:00:03]} Rf6 {[%emt 0:00:02]} 19. Rfe1 {[%emt 0:00:24]} Qf7 {[%emt 0:00:43]} 20. f3 {[%emt 0:00:10]} Kh8 {[%emt 0:00:29]} 21. Qe2 {[%emt 0:00:30]} Re8 {[%emt 0:00:05]} 22. b4 {[%emt 0:00:19]} a6 {[%emt 0:00:08]} 23. a4 {[%emt 0:00:06]} Qd7 {[%emt 0:00:40]} 24. Rb1 {[%emt 0:00:20]} Rf5 {[%emt 0:00:48]} 25. Re3 {[%emt 0:00:10]} Kg8 {[%emt 0:00:48]} 26. Re1 {[%emt 0:00:13]} Rf6 {[%emt 0:00:07]} 27. Rb1 {[%emt 0:00:54]} Rc8 {[%emt 0:00:19]} 28. Re1 {[%emt 0:01:04]} Re8 {[%emt 0:00:26]} 29. Rb1 {[%emt 0:00:15]} Qd6 {[%emt 0:00:31]} 30. Re5 {[%emt 0:00:19]} Rc8 {[%emt 0:00:31]} 31. Re1 {[%emt 0:00:25]} Re8 {[%emt 0:00:09]} 32. h4 {[%emt 0:01:15]} Re7 {[%emt 0:00:38]} 33. g3 {[%emt 0:00:20]} g6 {[%emt 0:01:52]} 34. f4 {[%emt 0:00:41]} h5 {[%emt 0:00:49]} 35. Kg2 {[%emt 0:00:09]} Kf7 {[%emt 0:00:19]} 36. Rb1 {[%emt 0:00:12]} Rc7 {[%emt 0:00:22]} 37. Qd3 {[%emt 0:00:31]} Kg7 {[%emt 0:01:04]} 38. Re2 {[%emt 0:00:56]} Rff7 {[%emt 0:00:40]} 39. Re5 {[%emt 0:00:19]} Rf6 {[%emt 0:00:05]} 40. Qe2 {[%emt 0:00:14]} Re7 {[%emt 0:00:29]} 41. Qd3 {[%emt 0:00:28]} Rc7 {[%emt 0:00:06]} 1/2-1/2

[Event "European Online Club-ch-A 2021"]
[Site "Online"]
[Date "2021.03.27"]
[Round "8.2"]
[White "Hrbek, Stepan"]
[Black "Ferster, Fabian"]
[Result "1/2-1/2"]
[ECO "A34"]
[WhiteElo "2230"]
[BlackElo "2149"]
[Annotator "NA"]
[PlyCount "153"]
[EventDate "2021.03.27"]
[EventType "team-tourn"]
[EventCountry "NET"]
[SourceTitle "playchess.com"]
[Source "ChessBase"]
[SourceQuality "1"]
[TimeControl "900+5"]

1. c4 {[%emt 0:00:00]} c5 {[%emt 0:00:04]} 2. Nf3 {[%emt 0:00:02]} Nf6 {[%emt 0:00:04]} 3. Nc3 {[%emt 0:00:02]} e6 {[%emt 0:00:02]} 4. e3 {[%emt 0:00:02]} Nc6 {[%emt 0:00:11]} 5. b3 {[%emt 0:01:31]} d5 {[%emt 0:00:08]} 6. cxd5 {[%emt 0:00:03]} exd5 {[%emt 0:00:06]} 7. Bb5 {[%emt 0:02:49]} Bd6 {[%emt 0:01:51]} 8. O-O {[%emt 0:00:17]} O-O {[%emt 0:00:02]} 9. d4 {[%emt 0:00:02]} cxd4 {[%emt 0:03:03]} 10. Nxd4 {[%emt 0:00:31]} Qc7 {[%emt 0:00:07]} 11. Nf3 {[%emt 0:03:42]} Bg4 {[%emt 0:00:14]} 12. Bxc6 {[%emt 0:01:03]} bxc6 {[%emt 0:00:05]} 13. h3 {[%emt 0:00:04]} Bh5 {[%emt 0:00:05]} 14. Bb2 {[%emt 0:00:19]} Rfe8 {[%emt 0:00:06]} 15. Rc1 {[%emt 0:00:56]} Qd7 {[%emt 0:00:22]} 16. Na4 {[%emt 0:02:07]} Ne4 {[%emt 0:02:16]} 17. Qd4 {[%emt 0:00:07]} f6 {[%emt 0:00:03]} 18. Nd2 {[%emt 0:00:08]} Be2 {[%emt 0:02:04]} 19. Rfe1 {[%emt 0:01:23]} Be5 {[%emt 0:00:13]} 20. Qb4 {[%emt 0:00:04]} Reb8 {[%emt 0:00:08]} 21. Qa3 {[%emt 0:01:11]} Bd6 {[%emt 0:00:15]} 22. Nc5 {[%emt 0:00:02]} Nxc5 {[%emt 0:00:36]} 23. Rxc5 {[%emt 0:00:05]} Bh5 {[%emt 0:00:28]} 24. Rec1 {[%emt 0:00:13]} Rb5 {[%emt 0:00:20]} 25. Bd4 {[%emt 0:00:05]} a5 {[%emt 0:00:22]} 26. Qb2 {[%emt 0:00:13]} Bxc5 {[%emt 0:00:04]} 27. Bxc5 {[%emt 0:00:01]} Qf5 {[%emt 0:00:39]} 28. g4 {[%emt 0:00:10]} Bxg4 {[%emt 0:00:03]} 29. hxg4 {[%emt 0:00:01]} Qxg4+ {[%emt 0:00:00]} 30. Kf1 {[%emt 0:00:01]} h5 {[%emt 0:00:12]} 31. Qd4 {[%emt 0:00:02]} Qxd4 {[%emt 0:00:50]} 32. Bxd4 {[%emt 0:00:02]} Rc8 {[%emt 0:00:04]} 33. Bc5 {[%emt 0:00:01]} g5 {[%emt 0:00:03]} 34. Nf3 {[%emt 0:00:02]} Rb7 {[%emt 0:00:13]} 35. Nd4 {[%emt 0:00:06]} Kf7 {[%emt 0:00:02]} 36. Bd6 {[%emt 0:00:07]} Rd7 {[%emt 0:00:07]} 37. Bc5 {[%emt 0:00:14]} Rb7 {[%emt 0:00:30]} 38. Kg2 {[%emt 0:00:08]} Kg6 {[%emt 0:00:10]} 39. Kf3 {[%emt 0:00:05]} f5 {[%emt 0:00:03]} 40. Bd6 {[%emt 0:00:08]} Rd7 {[%emt 0:00:54]} 41. Ba3 {[%emt 0:00:01]} h4 {[%emt 0:00:08]} 42. Rxc6+ {[%emt 0:00:11]} Rxc6 {[%emt 0:00:04]} 43. Nxc6 {[%emt 0:00:01]} Rc7 {[%emt 0:00:18]} 44. Nxa5 {[%emt 0:00:03]} g4+ {[%emt 0:00:19]} 45. Kg2 {[%emt 0:00:05]} Rc2 {[%emt 0:00:02]} 46. Bd6 {[%emt 0:00:03]} g3 {[%emt 0:00:07]} 47. Bxg3 {[%emt 0:00:07]} hxg3 {[%emt 0:00:03]} 48. Kxg3 {[%emt 0:00:01]} Rxa2 {[%emt 0:00:02]} 49. Nc6 {[%emt 0:00:02]} Kf6 {[%emt 0:00:10]} 50. Nd4 {[%emt 0:00:05]} Ke5 {[%emt 0:00:16]} 51. Nf3+ {[%emt 0:00:06]} Ke4 {[%emt 0:00:05]} 52. Ng5+ {[%emt 0:00:02]} Kd3 {[%emt 0:00:03]} 53. Ne6 {[%emt 0:00:15]} Rb2 {[%emt 0:00:25]} 54. Kf3 {[%emt 0:00:09]} Kd2 {[%emt 0:00:07]} 55. Nd4 {[%emt 0:00:06]} Ke1 {[%emt 0:00:02]} 56. Kf4 {[%emt 0:00:03]} Rxf2+ {[%emt 0:00:04]} 57. Ke5 {[%emt 0:00:01]} Kd2 {[%emt 0:00:10]} 58. Nxf5 {[%emt 0:00:12]} Kd3 {[%emt 0:00:04]} 59. b4 {[%emt 0:00:04]} Rb2 {[%emt 0:00:04]} 60. Ne7 {[%emt 0:00:04]} Rxb4 {[%emt 0:00:05]} 61. Nxd5 {[%emt 0:00:02]} Rb5 {[%emt 0:00:04]} 62. Kd6 {[%emt 0:00:08]} Ra5 {[%emt 0:00:09]} 63. Ke6 {[%emt 0:00:03]} Ke4 {[%emt 0:00:03]} 64. Nf6+ {[%emt 0:00:04]} Kxe3 {[%emt 0:00:03]} 65. Nd5+ {[%emt 0:00:01]} Kd4 {[%emt 0:00:06]} 66. Nf6 {[%emt 0:00:01]} Re5+ {[%emt 0:00:07]} 67. Kd6 {[%emt 0:00:02]} Rf5 {[%emt 0:00:04]} 68. Ke6 {[%emt 0:00:02]} Ra5 {[%emt 0:00:02]} 69. Ng4 {[%emt 0:00:05]} Ra6+ {[%emt 0:00:05]} 70. Kf5 {[%emt 0:00:02]} Ra8 {[%emt 0:00:03]} 71. Nf6 {[%emt 0:00:06]} Ra5+ {[%emt 0:00:04]} 72. Ke6 {[%emt 0:00:01]} Rb5 {[%emt 0:00:04]} 73. Ng4 {[%emt 0:00:03]} Ke4 {[%emt 0:00:03]} 74. Nf6+ {[%emt 0:00:02]} Kf4 {[%emt 0:00:02]} 75. Nd5+ {[%emt 0:00:01]} Kg5 {[%emt 0:00:10]} 76. Ke5 {[%emt 0:00:02]} Rxd5+ {[%emt 0:00:06]} 77. Kxd5 {[%emt 0:00:02]} 1/2-1/2

[Event "European Online Club-ch-A 2021"]
[Site "Online"]
[Date "2021.03.27"]
[Round "8.3"]
[White "Frick, Renato"]
[Black "Brozka, Karel"]
[Result "0-1"]
[ECO "B12"]
[WhiteElo "1947"]
[BlackElo "2080"]
[Annotator "NA"]
[PlyCount "74"]
[EventDate "2021.03.27"]
[EventType "team-tourn"]
[EventCountry "NET"]
[SourceTitle "playchess.com"]
[Source "ChessBase"]
[SourceQuality "1"]
[TimeControl "900+5"]

1. e4 {[%emt 0:00:41]} c6 {[%emt 0:00:05]} 2. d4 {[%emt 0:00:10]} d5 {[%emt 0:00:02]} 3. e5 {[%emt 0:00:01]} c5 {[%emt 0:00:02]} 4. c3 {[%emt 0:01:12]} Nc6 {[%emt 0:00:06]} 5. Nf3 {[%emt 0:00:16]} Bg4 {[%emt 0:00:03]} 6. Be2 {[%emt 0:00:38]} e6 {[%emt 0:00:03]} 7. O-O {[%emt 0:01:00]} Nge7 {[%emt 0:00:11]} 8. Be3 {[%emt 0:00:24]} Nf5 {[%emt 0:00:12]} 9. Na3 {[%emt 0:00:26]} cxd4 {[%emt 0:00:11]} 10. cxd4 {[%emt 0:02:21]} Qb6 {[%emt 0:00:27]} 11. Nc2 {[%emt 0:00:24]} Be7 {[%emt 0:00:15]} 12. Qd2 {[%emt 0:01:16]} O-O {[%emt 0:00:21]} 13. Rab1 {[%emt 0:00:20]} Nb4 {[%emt 0:00:15]} 14. Nxb4 {[%emt 0:00:26]} Bxb4 {[%emt 0:00:04]} 15. Qd3 {[%emt 0:00:49]} Rac8 {[%emt 0:01:40]} 16. a3 {[%emt 0:01:07]} Be7 {[%emt 0:00:23]} 17. b4 {[%emt 0:01:46]} Bh5 {[%emt 0:00:34]} 18. Rbc1 {[%emt 0:00:48]} Bg6 {[%emt 0:00:11]} 19. Qb5 {[%emt 0:00:10]} Nxe3 {[%emt 0:00:40]} 20. fxe3 {[%emt 0:00:04]} f6 {[%emt 0:00:46]} 21. Bd3 {[%emt 0:00:42]} Bxd3 {[%emt 0:01:42]} 22. Qxd3 {[%emt 0:00:05]} Rc6 {[%emt 0:00:12]} 23. b5 {[%emt 0:00:50]} Rc7 {[%emt 0:00:07]} 24. Rxc7 {[%emt 0:00:15]} Qxc7 {[%emt 0:00:03]} 25. exf6 {[%emt 0:00:02]} Bxf6 {[%emt 0:00:25]} 26. h4 {[%emt 0:00:08]} Rc8 {[%emt 0:00:35]} 27. Ng5 {[%emt 0:00:20]} Bxg5 {[%emt 0:00:39]} 28. hxg5 {[%emt 0:00:02]} Qg3 {[%emt 0:01:09]} 29. g6 {[%emt 0:00:17]} hxg6 {[%emt 0:01:11]} 30. Rb1 {[%emt 0:00:07]} Rf8 {[%emt 0:00:16]} 31. Qe2 {[%emt 0:00:05]} b6 {[%emt 0:00:47]} 32. a4 {[%emt 0:00:04]} Rf5 {[%emt 0:00:04]} 33. Rc1 {[%emt 0:00:21]} Rh5 {[%emt 0:00:11]} 34. Rc2 {[%emt 0:00:03]} Qh2+ {[%emt 0:00:10]} 35. Kf1 {[%emt 0:00:02]} Rf5+ {[%emt 0:00:20]} 36. Ke1 {[%emt 0:00:01]} Qg1+ {[%emt 0:00:03]} 37. Kd2 {[%emt 0:00:02]} Rf2 {[%emt 0:00:02]} 0-1

[Event "European Online Club-ch-A 2021"]
[Site "Online"]
[Date "2021.03.27"]
[Round "8.4"]
[White "Smolik, Jachym"]
[Black "Weissenhofer, Jonas"]
[Result "1-0"]
[ECO "E92"]
[WhiteElo "2073"]
[BlackElo "1719"]
[Annotator "NA"]
[PlyCount "109"]
[EventDate "2021.03.27"]
[EventType "team-tourn"]
[EventCountry "NET"]
[SourceTitle "playchess.com"]
[Source "ChessBase"]
[SourceQuality "1"]
[TimeControl "900+5"]

1. d4 {[%emt 0:00:00]} Nf6 {[%emt 0:00:02]} 2. Nf3 {[%emt 0:00:04]} g6 {[%emt 0:00:03]} 3. c4 {[%emt 0:00:03]} Bg7 {[%emt 0:00:01]} 4. Nc3 {[%emt 0:00:01]} O-O {[%emt 0:00:03]} 5. e4 {[%emt 0:00:07]} d6 {[%emt 0:00:02]} 6. Be2 {[%emt 0:00:01]} e5 {[%emt 0:00:04]} 7. d5 {[%emt 0:00:02]} a5 {[%emt 0:00:14]} 8. Bg5 {[%emt 0:00:04]} Na6 {[%emt 0:00:09]} 9. Nd2 {[%emt 0:00:05]} h6 {[%emt 0:00:19]} 10. Be3 {[%emt 0:00:03]} Kh7 {[%emt 0:00:28]} 11. a3 {[%emt 0:00:08]} Ng8 {[%emt 0:00:59]} 12. O-O {[%emt 0:00:24]} f5 {[%emt 0:00:12]} 13. f3 {[%emt 0:00:04]} f4 {[%emt 0:00:04]} 14. Bf2 {[%emt 0:00:03]} g5 {[%emt 0:00:23]} 15. b4 {[%emt 0:00:03]} h5 {[%emt 0:01:10]} 16. c5 {[%emt 0:00:36]} Rf6 {[%emt 0:01:05]} 17. Nc4 {[%emt 0:00:33]} Bf8 {[%emt 0:01:05]} 18. cxd6 {[%emt 0:00:23]} cxd6 {[%emt 0:01:05]} 19. Bb6 {[%emt 0:00:14]} Qe8 {[%emt 0:00:52]} 20. Nxa5 {[%emt 0:00:26]} Qg6 {[%emt 0:00:43]} 21. Nb5 {[%emt 0:03:13]} g4 {[%emt 0:00:47]} 22. Bd8 {[%emt 0:00:19]} Be7 {[%emt 0:00:30]} 23. Bxe7 {[%emt 0:00:04]} Nxe7 {[%emt 0:00:02]} 24. Re1 {[%emt 0:00:34]} Qg5 {[%emt 0:01:09]} 25. Nc4 {[%emt 0:00:50]} g3 {[%emt 0:00:39]} 26. Bf1 {[%emt 0:01:35]} Qh4 {[%emt 0:00:43]} 27. h3 {[%emt 0:00:05]} Rg6 {[%emt 0:00:16]} 28. Re2 {[%emt 0:00:42]} Bd7 {[%emt 0:01:27]} 29. Nbxd6 {[%emt 0:00:18]} Rag8 {[%emt 0:00:25]} 30. Raa2 {[%emt 0:00:31]} b5 {[%emt 0:00:32]} 31. Nf5 {[%emt 0:01:04]} Nxf5 {[%emt 0:00:11]} 32. exf5 {[%emt 0:00:03]} Bxf5 {[%emt 0:00:02]} 33. Nxe5 {[%emt 0:00:08]} R6g7 {[%emt 0:00:46]} 34. Nc6 {[%emt 0:00:58]} Nc7 {[%emt 0:00:51]} 35. Nd4 {[%emt 0:00:37]} Bxh3 {[%emt 0:00:22]} 36. gxh3 {[%emt 0:00:03]} g2 {[%emt 0:00:03]} 37. Rxg2 {[%emt 0:00:05]} Qxh3 {[%emt 0:00:09]} 38. Rxg7+ {[%emt 0:00:13]} Rxg7+ {[%emt 0:00:02]} 39. Rg2 {[%emt 0:00:03]} Rxg2+ {[%emt 0:00:09]} 40. Bxg2 {[%emt 0:00:02]} Qg3 {[%emt 0:00:01]} 41. Ne2 {[%emt 0:00:22]} Qg5 {[%emt 0:00:06]} 42. Qc2+ {[%emt 0:00:08]} Kg8 {[%emt 0:00:08]} 43. Qxc7 {[%emt 0:00:06]} h4 {[%emt 0:00:02]} 44. Qc8+ {[%emt 0:00:02]} Kh7 {[%emt 0:00:03]} 45. Qg4 {[%emt 0:00:04]} Qxd5 {[%emt 0:00:05]} 46. Qxh4+ {[%emt 0:00:05]} Kg7 {[%emt 0:00:03]} 47. Qg4+ {[%emt 0:00:04]} Kh7 {[%emt 0:00:05]} 48. Nxf4 {[%emt 0:00:03]} Qd4+ {[%emt 0:00:08]} 49. Kh2 {[%emt 0:00:04]} Qf6 {[%emt 0:00:07]} 50. Qg6+ {[%emt 0:00:05]} Qxg6 {[%emt 0:00:01]} 51. Nxg6 {[%emt 0:00:01]} Kxg6 {[%emt 0:00:01]} 52. Kg3 {[%emt 0:00:01]} Kg5 {[%emt 0:00:02]} 53. f4+ {[%emt 0:00:01]} Kf5 {[%emt 0:00:01]} 54. Kf3 {[%emt 0:00:01]} Ke6 {[%emt 0:00:01]} 55. Ke4 {[%emt 0:00:02]} 1-0

[Event "European Online Club-ch-A 2021"]
[Site "Online"]
[Date "2021.03.27"]
[Round "8.6"]
[White "Durak, Can"]
[Black "Bacrot, Etienne"]
[Result "0-1"]
[ECO "E51"]
[WhiteElo "2187"]
[BlackElo "2678"]
[Annotator "ChessBase"]
[PlyCount "92"]
[EventDate "2021.03.27"]
[EventType "team-tourn"]
[EventCountry "NET"]
[SourceTitle "playchess.com"]
[Source "ChessBase"]
[SourceQuality "1"]
[TimeControl "900+5"]

1. d4 {[%emt 0:00:00]} Nf6 {[%emt 0:00:04]} 2. c4 {[%emt 0:00:03]} e6 {[%emt 0:00:01]} 3. Nc3 {[%emt 0:00:03]} Bb4 {[%emt 0:00:02]} 4. e3 {[%emt 0:00:02]} b6 {[%emt 0:00:02]} 5. Bd2 {[%emt 0:00:02]} Bb7 {[%emt 0:00:02]} 6. Nf3 {[%emt 0:00:02]} O-O {[%emt 0:00:03]} 7. Rc1 {[%emt 0:00:02]} d5 {[%emt 0:00:07]} 8. cxd5 {[%emt 0:00:05]} exd5 {[%emt 0:00:02]} 9. Be2 {[%emt 0:00:02]} Nbd7 {[%emt 0:00:10]} 10. O-O {[%emt 0:00:07]} a6 {[%emt 0:00:03]} 11. Ne5 {[%emt 0:00:03]} Bd6 {[%emt 0:00:10]} 12. f4 {[%emt 0:00:03]} c5 {[%emt 0:00:02]} 13. Bf3 {[%emt 0:00:29]} b5 {[%emt 0:00:02]} 14. Be1 {[%emt 0:00:08]} cxd4 {[%emt 0:00:05]} 15. exd4 {[%emt 0:00:11]} Ne4 {[%emt 0:00:04]} 16. Qb3 {[%emt 0:00:37]} Nb6 {[%emt 0:00:19]} 17. Ne2 {[%emt 0:00:31]} Qe7 {[%emt 0:00:56]} 18. Ng3 {[%emt 0:00:57]} g6 {[%emt 0:00:35]} 19. Rc2 {[%emt 0:00:41]} Nc4 {[%emt 0:02:04]} 20. Re2 {[%emt 0:00:06]} f5 {[%emt 0:00:17]} 21. a3 {[%emt 0:00:38]} Rac8 {[%emt 0:00:20]} 22. Bb4 {[%emt 0:00:08]} Kg7 {[%emt 0:00:05]} 23. Bxd6 {[%emt 0:00:18]} Qxd6 {[%emt 0:00:06]} 24. Qb4 {[%emt 0:00:12]} Qxb4 {[%emt 0:00:07]} 25. axb4 {[%emt 0:00:04]} Nxe5 {[%emt 0:00:41]} 26. dxe5 {[%emt 0:00:24]} Kf7 {[%emt 0:01:55]} 27. Bxe4 {[%emt 0:00:09]} fxe4 {[%emt 0:00:09]} 28. f5 {[%emt 0:00:03]} gxf5 {[%emt 0:00:02]} 29. Rxf5+ {[%emt 0:04:15]} Ke6 {[%emt 0:00:47]} 30. Rxf8 {[%emt 0:00:08]} Rxf8 {[%emt 0:00:02]} 31. Rf2 {[%emt 0:00:25]} Rxf2 {[%emt 0:00:09]} 32. Kxf2 {[%emt 0:00:02]} Kxe5 {[%emt 0:00:02]} 33. Ne2 {[%emt 0:00:04]} d4 {[%emt 0:00:01]} 34. Nc1 {[%emt 0:00:04]} e3+ {[%emt 0:00:07]} 35. Ke2 {[%emt 0:00:02]} Bxg2 {[%emt 0:00:05]} 36. Nd3+ {[%emt 0:00:02]} Kf5 {[%emt 0:00:09]} 37. Nc5 {[%emt 0:00:02]} Be4 {[%emt 0:00:09]} 38. h3 {[%emt 0:00:18]} Bd5 {[%emt 0:00:25]} 39. Nxa6 {[%emt 0:00:15]} Kf4 {[%emt 0:00:11]} 40. Nc5 {[%emt 0:00:10]} Bc4+ {[%emt 0:00:04]} 41. Ke1 {[%emt 0:00:05]} d3 {[%emt 0:00:10]} 42. b3 {[%emt 0:00:01]} d2+ {[%emt 0:00:06]} 43. Kd1 {[%emt 0:00:03]} Bf7 {[%emt 0:00:05]} 44. Nd3+ {[%emt 0:00:20]} Kg3 {[%emt 0:00:02]} 45. Nb2 {[%emt 0:00:08]} Bxb3+ {[%emt 0:00:03]} 46. Ke2 {[%emt 0:00:03]} d1=Q+ {[%emt 0:00:07]} 0-1

[Event "European Online Club-ch-A 2021"]
[Site "Online"]
[Date "2021.03.27"]
[Round "8.8"]
[White "Tinmaz, Kerem"]
[Black "Naiditsch, Arkadij"]
[Result "0-1"]
[ECO "B33"]
[WhiteElo "1614"]
[BlackElo "2649"]
[Annotator "ChessBase"]
[PlyCount "76"]
[EventDate "2021.03.27"]
[EventType "team-tourn"]
[EventCountry "NET"]
[SourceTitle "playchess.com"]
[Source "ChessBase"]
[SourceQuality "1"]
[TimeControl "900+5"]

1. e4 {[%emt 0:00:00]} c5 {[%emt 0:00:03]} 2. Nf3 {[%emt 0:00:03]} Nc6 {[%emt 0:00:01]} 3. d4 {[%emt 0:00:02]} cxd4 {[%emt 0:00:01]} 4. Nxd4 {[%emt 0:00:02]} Qb6 {[%emt 0:00:01]} 5. Nb3 {[%emt 0:00:01]} Nf6 {[%emt 0:00:02]} 6. Nc3 {[%emt 0:00:01]} e6 {[%emt 0:00:02]} 7. Qe2 {[%emt 0:00:02]} Bb4 {[%emt 0:00:03]} 8. Bd2 {[%emt 0:00:03]} a5 {[%emt 0:00:03]} 9. a3 {[%emt 0:00:05]} Bxc3 {[%emt 0:00:02]} 10. Bxc3 {[%emt 0:00:01]} e5 {[%emt 0:00:01]} 11. O-O-O {[%emt 0:00:07]} O-O {[%emt 0:00:02]} 12. g4 {[%emt 0:00:02]} d6 {[%emt 0:01:17]} 13. g5 {[%emt 0:00:04]} Ne8 {[%emt 0:00:10]} 14. h4 {[%emt 0:00:03]} Be6 {[%emt 0:00:05]} 15. h5 {[%emt 0:00:02]} Nb4 {[%emt 0:01:19]} 16. axb4 {[%emt 0:08:09]} axb4 {[%emt 0:00:03]} 17. Qb5 {[%emt 0:00:52]} Qxb5 {[%emt 0:00:19]} 18. Bxb5 {[%emt 0:00:04]} bxc3 {[%emt 0:00:04]} 19. bxc3 {[%emt 0:01:50]} Nc7 {[%emt 0:00:04]} 20. Bd3 {[%emt 0:00:21]} Ra2 {[%emt 0:00:14]} 21. f3 {[%emt 0:00:52]} Rfa8 {[%emt 0:00:20]} 22. c4 {[%emt 0:00:25]} Kf8 {[%emt 0:00:02]} 23. Kd2 {[%emt 0:00:10]} b5 {[%emt 0:00:05]} 24. Nc1 {[%emt 0:00:51]} R2a5 {[%emt 0:00:17]} 25. cxb5 {[%emt 0:00:04]} Nxb5 {[%emt 0:00:04]} 26. Bxb5 {[%emt 0:00:33]} Rxb5 {[%emt 0:00:00]} 27. Nd3 {[%emt 0:00:02]} h6 {[%emt 0:00:02]} 28. gxh6 {[%emt 0:00:11]} gxh6 {[%emt 0:00:00]} 29. Rb1 {[%emt 0:00:21]} Rxb1 {[%emt 0:00:03]} 30. Rxb1 {[%emt 0:00:02]} Ke7 {[%emt 0:00:01]} 31. Rg1 {[%emt 0:00:46]} Bc4 {[%emt 0:00:40]} 32. Ke3 {[%emt 0:00:15]} Ra2 {[%emt 0:00:16]} 33. Rg2 {[%emt 0:00:34]} Ra1 {[%emt 0:00:09]} 34. f4 {[%emt 0:00:19]} Bxd3 {[%emt 0:00:16]} 35. cxd3 {[%emt 0:00:13]} Rh1 {[%emt 0:00:01]} 36. fxe5 {[%emt 0:00:09]} dxe5 {[%emt 0:00:00]} 37. Ra2 {[%emt 0:00:16]} Rh3+ {[%emt 0:00:05]} 38. Kd2 {[%emt 0:00:07]} Rh2+ {[%emt 0:00:02]} 0-1